bitfinex-derivatives/quotes_SOLF0:USTF0_20240927
["timestamp","ask_amount","ask_price","bid_price","bid_amount"]
[1727459762686,16.85677088,157.88,157.78,75.51237774]
[1727459762687,15.21,157.86,157.78,75.51237774]
[1727459762891,1.64677088,157.88,157.78,75.51237774]
[1727459763095,3.1672,157.83,157.8,3.1676]
[1727459763295,3.16565329,157.83,157.8,3.1676]
[1727459763497,15.21,157.85,157.78,75.51237774]
[1727459763900,16.85677088,157.88,157.79,15.21]
[1727459764099,1.64677088,157.88,157.79,15.21]
[1727459764996,3.1667,157.86,157.82,3.1672]
[1727459765191,1.64677088,157.88,157.81,15.21]
[1727459765993,4.81297088,157.88,157.81,15.21]
[1727459766903,3.49837088,157.88,157.81,15.21]
[1727459767299,3.49837088,157.88,157.79,1.3254]
[1727459767300,0.33217088,157.88,157.83,15.21]
[1727459767496,0.33217088,157.88,157.85,15.21]
[1727459767698,0.33217088,157.88,157.87,15.21]
[1727459767898,0.33217088,157.88,157.87,18.3763]
[1727459769405,0.33217088,157.88,157.87,3.1663]
[1727459769791,0.33217088,157.88,157.85,15.21]
[1727459769792,0.33217088,157.88,157.86,3.1664]
[1727459770292,0.33217088,157.88,157.85,15.21]
[1727459771299,0.33217088,157.88,157.87,3.1663]
[1727459774399,0.33217088,157.88,157.86,3.1665]
[1727459774602,0.33217088,157.88,157.85,15.21]
[1727459775406,0.33217088,157.88,157.87,3.1663]
[1727459776910,3.49837088,157.88,157.83,15.21]
[1727459777214,0.33217088,157.88,157.83,15.21]
[1727459777606,0.33217088,157.88,157.86,3.1664]
[1727459778721,3.49837088,157.88,157.85,3.1667]
[1727459779829,3.1664,157.87,157.85,3.1667]
[1727459781029,3.49837088,157.88,157.85,3.1667]
[1727459781926,3.1663,157.87,157.85,3.1667]
[1727459782123,3.1663,157.87,157.84,3.1668]
[1727459782322,0.33217088,157.88,157.79,16.5354]
[1727459782323,3.1667,157.85,157.79,16.5354]
[1727459782517,3.16876848,157.84,157.79,16.5354]
[1727459782727,15.54217088,157.88,157.83,3.167]
[1727459784324,15.54217088,157.88,157.79,16.5354]
[1727459785032,3.1666,157.86,157.83,3.167]
[1727459785226,0.33217088,157.88,157.81,15.21]
[1727459786030,3.1664,157.87,157.84,3.1668]
[1727459786335,0.33217088,157.88,157.79,16.5354]
[1727459786536,3.1667,157.85,157.82,3.1672]
[1727459786835,3.16430109,157.84,157.82,3.1672]
[1727459788032,3.16430109,157.84,157.83,3.1671]
[1727459789034,3.16430109,157.84,157.79,16.5354]
[1727459789236,0.33217088,157.88,157.79,16.5354]
[1727459789438,3.1668,157.85,157.82,3.1672]
[1727459789637,3.17317301,157.84,157.82,3.1672]
[1727459791442,3.17317301,157.84,157.83,3.1671]
[1727459791836,0.33217088,157.88,157.83,3.1671]
[1727459792244,3.1667,157.86,157.83,3.1671]
[1727459792640,3.1667,157.86,157.84,3.1669]
[1727459794345,3.1667,157.86,157.83,3.167]
[1727459794737,0.33217088,157.88,157.85,9.73]
[1727459795239,3.49837088,157.88,157.85,12.8966]
[1727459795537,0.33217088,157.88,157.86,9.73]
[1727459795740,0.33217088,157.88,157.87,12.8963]
[1727459798342,0.33217088,157.88,157.87,3.1663]
[1727459799839,0.33217088,157.88,157.84,15.2]
[1727459800445,0.33217088,157.88,157.87,3.1663]
[1727459801145,0.33217088,157.88,157.86,3.1664]
[1727459802547,0.33217088,157.88,157.84,15.2]
[1727459803155,0.33217088,157.88,157.86,3.1664]
[1727459803343,0.33217088,157.88,157.84,15.2]
[1727459803743,0.33217088,157.88,157.87,3.1663]
[1727459803947,0.33217088,157.88,157.84,15.2]
[1727459804641,0.33217088,157.88,157.85,3.1667]
[1727459805038,0.33217088,157.88,157.82,15.2]
[1727459805243,3.1665,157.87,157.84,3.1669]
[1727459806051,3.49837088,157.88,157.85,3.1667]
[1727459806751,3.49837088,157.88,157.84,3.1668]
[1727459806944,3.1664,157.87,157.84,3.1668]
[1727459809351,0.33217088,157.88,157.85,3.1667]
[1727459809652,0.33217088,157.88,157.8,15.2]
[1727459809849,3.49837088,157.88,157.84,3.1668]
[1727459810549,0.33217088,157.88,157.82,15.2]
[1727459811949,0.33217088,157.88,157.85,3.1666]
[1727459812449,3.49827088,157.88,157.85,3.1666]
[1727459814857,0.33217088,157.88,157.85,3.1666]
[1727459815753,0.33217088,157.88,157.86,3.1665]
[1727459818961,0.33217088,157.88,157.85,3.1666]
[1727459820552,0.33217088,157.88,157.87,3.1663]
[1727459820759,0.33217088,157.88,157.87,12.8963]
[1727459823264,1.06046853,157.9,157.89,3.1659]
[1727459823564,1.06046853,157.9,157.89,12.8959]
[1727459824667,1.06046853,157.9,157.88,3.166]
[1727459824967,1.06046853,157.9,157.88,9.73]
[1727459825757,1.06046853,157.9,157.89,3.1659]
[1727459829770,4.22616853,157.9,157.8,6.3351]
[1727459830070,4.22616853,157.9,157.86,9.73]
[1727459830272,10.79046853,157.9,157.86,9.73]
[1727459831773,3.166,157.89,157.87,3.1663]
[1727459831964,10.79046853,157.9,157.87,3.1663]
[1727459832773,13.95626853,157.9,157.87,3.1663]
[1727459832969,1.06046853,157.9,157.89,12.8959]
[1727459835873,1.06046853,157.9,157.89,9.73]
[1727459836073,1.06046853,157.9,157.88,12.8961]
[1727459836370,1.06046853,157.9,157.89,12.8959]
[1727459846092,1.06046853,157.9,157.89,3.1659]
[1727459846595,1.06046853,157.9,157.89,12.8959]
[1727459856107,3.1663,157.87,157.83,85.22333306]
[1727459857110,12.8962,157.88,157.85,3.1665]
[1727459858395,3.1663,157.87,157.85,3.1665]
[1727459858602,9.73,157.86,157.79,1.2987]
[1727459858803,9.73,157.86,157.8,9.73]
[1727459859002,9.73,157.84,157.8,9.73]
[1727459859203,3.22852791,157.83,157.81,3.1675]
[1727459859401,9.73,157.83,157.76,75.5260011]
[1727459859705,9.73,157.81,157.76,85.2560011]
[1727459859904,9.73,157.81,157.76,75.5260011]
[1727459860816,4.0604,157.82,157.76,85.2560011]
[1727459861012,9.73,157.81,157.76,85.2560011]
[1727459861405,12.8976,157.81,157.78,3.168]
[1727459864314,9.73,157.79,157.76,78.6945011]
[1727459864611,9.73,157.79,157.73,9.73]
[1727459864809,9.73,157.77,157.75,3.1686]
[1727459865011,9.73,157.76,157.72,9.73]
[1727459865410,9.73,157.76,157.73,3.169]
[1727459865411,12.8986,157.76,157.73,3.169]
[1727459865612,9.73,157.75,157.73,3.169]
[1727459865817,3.12279448,157.74,157.73,3.169]
[1727459867412,12.8986,157.76,157.73,3.169]
[1727459873022,9.73,157.75,157.73,3.169]
[1727459873222,12.89091786,157.75,157.73,3.169]
[1727459875519,3.16091786,157.75,157.73,3.169]
[1727459875717,9.73,157.76,157.71,9.73]
[1727459876618,9.73,157.76,157.74,3.1689]
[1727459877318,3.11704747,157.75,157.74,3.1689]
[1727459877522,68.46,157.82,157.65,2.6216]
[1727459877719,3.22262949,157.81,157.79,9.73]
[1727459878217,9.73,157.83,157.78,9.73]
[1727459878422,66.62724282,157.84,157.7,6.3394]
[1727459878423,9.73,157.8,157.7,6.3394]
[1727459878621,9.73,157.8,157.76,9.73]
[1727459879920,9.73,157.8,157.78,3.1681]
[1727459880120,9.73,157.82,157.77,9.73]
[1727459880318,15.49,157.83,157.8,3.1677]
[1727459881023,9.73,157.82,157.8,3.1677]
[1727459881326,9.73,157.82,157.79,3.1678]
[1727459881528,12.8973,157.82,157.79,3.1678]
[1727459882019,12.3228,157.83,157.8,3.1677]
[1727459882920,9.73,157.82,157.8,3.1677]
[1727459883926,12.3228,157.83,157.8,3.1677]
[1727459889024,12.3228,157.83,157.81,3.1675]
[1727459889621,9.73,157.83,157.82,3.1673]
[1727459889826,3.09580424,157.84,157.82,3.1673]
[1727459890029,12.8967,157.85,157.82,3.1673]
[1727459890730,16.11958097,157.85,157.82,3.1673]
[1727459895936,9.73,157.86,157.82,9.73]
[1727459896238,12.2995,157.88,157.83,9.73]
[1727459896438,15.43219754,157.88,157.83,9.73]
[1727459896637,18.59839754,157.88,157.85,3.1666]
[1727459897333,18.59839754,157.88,157.83,9.73]
[1727459897535,18.59839754,157.88,157.84,3.1668]
[1727459898033,3.1663,157.87,157.84,3.1668]
[1727459898435,12.8963,157.87,157.84,3.1668]
[1727459900450,12.8963,157.87,157.77,2.7013]
[1727459900451,9.73,157.85,157.83,3.167]
[1727459900741,3.1666,157.86,157.83,3.167]
[1727459900742,9.73,157.84,157.83,3.167]
[1727459902944,9.73,157.85,157.83,3.167]
[1727459904941,12.8966,157.86,157.83,3.167]
[1727459905133,12.8966,157.86,157.84,3.1669]
[1727459905337,3.1663,157.87,157.83,9.73]
[1727459905538,3.13269754,157.88,157.85,9.73]
[1727459905839,1.06046853,157.9,157.79,6.3359]
[1727459905840,1.06046853,157.9,157.87,3.1663]
[1727459906045,4.26647949,157.9,157.87,3.1663]
[1727459906536,17.16237949,157.9,157.86,3.1664]
[1727459906843,13.99647949,157.9,157.86,3.1664]
[1727459907232,9.73,157.87,157.85,3.1667]
[1727459907438,9.73,157.87,157.82,9.73]
[1727459907938,9.73,157.87,157.84,3.1668]
[1727459908843,9.73,157.85,157.83,3.167]
[1727459910243,12.8967,157.85,157.79,75.51530447]
[1727459910440,9.73,157.83,157.79,75.51530447]
[1727459910840,3.09946238,157.82,157.8,3.1675]
[1727459911751,9.73,157.81,157.79,75.51530447]
[1727459911940,3.2360263,157.8,157.79,75.51530447]
[1727459912140,9.73,157.81,157.8,3.1677]
[1727459912449,9.73,157.82,157.8,3.1677]
[1727459912750,3.11914525,157.81,157.8,3.1677]
[1727459916244,9.73,157.81,157.79,78.68310447]
[1727459916447,9.73,157.81,157.79,75.51530447]
[1727459918540,9.73,157.81,157.8,3.1677]
[1727459919947,9.73,157.81,157.79,78.68320447]
[1727459920956,12.8976,157.81,157.79,78.68320447]
[1727459924246,12.8976,157.81,157.79,75.51530447]
[1727459925248,12.8976,157.81,157.79,78.68320447]
[1727459925753,9.73,157.81,157.79,75.51530447]
[1727459925955,9.73,157.81,157.8,3.1677]
[1727459926150,9.73,157.81,157.79,75.51530447]
[1727459926750,6.34211162,157.82,157.79,78.68310447]
[1727459926953,16.07211162,157.82,157.79,78.68310447]
[1727459928147,16.07211162,157.82,157.8,3.1677]
[1727459929656,12.90461162,157.82,157.8,3.1677]
[1727459932351,9.73,157.81,157.76,9.73]
[1727459932552,9.73,157.8,157.76,9.73]
[1727459932747,9.73,157.8,157.78,3.168]
[1727459933257,3.11977916,157.79,157.78,3.168]
[1727459935152,9.73,157.79,157.7,6.3394]
[1727459935355,9.73,157.77,157.72,9.73]
[1727459935547,9.73,157.78,157.73,9.73]
[1727459936167,12.8982,157.78,157.76,3.1684]
[1727459939155,3.8598,157.87,157.77,9.73]
[1727459939455,9.73,157.83,157.78,9.73]
[1727459940057,3.1676,157.81,157.79,3.1678]
[1727459940261,3.09584189,157.8,157.79,3.1678]
[1727459940457,3.8598,157.87,157.79,9.73]
[1727459940649,3.8598,157.87,157.8,9.73]
[1727459940955,13.5898,157.87,157.82,9.73]
[1727459941159,3.1666,157.86,157.82,9.73]
[1727459941362,13.5898,157.87,157.82,9.73]
[1727459942058,3.1669,157.85,157.82,12.8973]
[1727459942360,3.1669,157.85,157.82,9.73]
[1727459942657,12.8969,157.85,157.81,12.8975]
[1727459944155,7.0262,157.87,157.81,9.73]
[1727459944358,9.73,157.86,157.81,9.73]
[1727459945866,12.8967,157.86,157.83,3.167]
[1727459946754,9.73,157.86,157.82,9.73]
[1727459947762,12.8965,157.86,157.83,3.167]
[1727459947962,3.1665,157.86,157.83,3.167]
[1727459948158,12.8965,157.86,157.83,3.167]
[1727459948367,9.73,157.86,157.83,3.167]
[1727459949464,3.1662,157.88,157.83,9.73]
[1727459950464,12.896,157.89,157.85,3.1667]
[1727459950959,12.896,157.89,157.86,3.1665]
[1727459951567,7.43227949,157.9,157.87,3.1663]
[1727459951868,17.16227949,157.9,157.87,3.1663]
[1727459953367,7.43227949,157.9,157.87,3.1663]
[1727459955772,4.26647949,157.9,157.87,9.73]
[1727459956073,1.06046853,157.9,157.89,9.73]
[1727459956667,1.99329691,157.91,157.89,9.73]
[1727459957067,1.99329691,157.91,157.9,3.1657]
[1727459965377,1.99329691,157.91,157.9,12.8957]
[1727459969976,3.43752597,157.94,157.9,9.73]
[1727459970179,4.77945871,157.95,157.93,9.73]
[1727459970382,4.77945871,157.95,157.94,9.73]
[1727459970584,4.77945871,157.95,157.94,12.8949]
[1727459970882,4.13009049,157.96,157.94,9.73]
[1727459971279,11.65516123,158.0,157.94,9.73]
[1727459971588,11.65516123,158.0,157.96,9.73]
[1727459972589,11.65516123,158.0,157.97,3.1643]
[1727459975482,14.81906123,158.0,157.97,3.1643]
[1727459976188,8.1888122,157.99,157.97,3.1643]
[1727459976374,8.1888122,157.99,157.96,12.8944]
[1727459976581,5.0248122,157.99,157.95,9.73]
[1727459976983,5.0248122,157.99,157.95,12.8946]
[1727459976984,6.5966297,157.98,157.95,12.8946]
[1727459977185,3.4323297,157.98,157.95,9.73]
[1727459977584,3.4323297,157.98,157.96,3.1645]
[1727459978590,3.4323297,157.98,157.96,12.8945]
[1727459978787,3.4323297,157.98,157.97,12.8943]
[1727459981687,11.65516123,158.0,157.99,3.1639]
[1727459981889,11.65516123,158.0,157.99,12.8939]
[1727459982486,11.65516123,158.0,157.99,9.73]
[1727459983192,11.65516123,158.0,157.99,12.8939]
[1727459988795,11.65516123,158.0,157.99,9.73]
[1727459989595,11.65516123,158.0,157.99,12.8939]
[1727459995597,11.65516123,158.0,157.98,3.164]
[1727459995902,11.65516123,158.0,157.98,12.894]
[1727459996904,14.81896123,158.0,157.98,12.894]
[1727459997302,11.65516123,158.0,157.9,4.49793863]
[1727459997510,3.1641,157.99,157.96,9.73]
[1727459997900,3.1641,157.99,157.96,12.8944]
[1727459998412,9.73,157.99,157.95,9.73]
[1727459998613,12.3311,157.99,157.95,9.73]
[1727459998816,3.1644,157.97,157.95,9.73]
[1727459999502,3.1644,157.97,157.95,12.8947]
[1727459999709,4.5409,157.98,157.95,12.8947]
[1727460000008,1.3768,157.98,157.96,3.1644]
[1727460000411,1.3768,157.98,157.95,9.73]
[1727460000810,3.1644,157.97,157.95,9.73]
[1727460001413,3.1645,157.96,157.94,9.73]
[1727460001716,11.1068,157.98,157.86,1.9742]
[1727460001917,14.28147686,157.98,157.92,9.73]
[1727460002312,3.1646,157.96,157.93,3.1649]
[1727460002519,3.1646,157.96,157.92,9.73]
[1727460002818,14.28147686,157.98,157.93,3.165]
[1727460003114,4.55147686,157.98,157.93,3.165]
[1727460003318,9.73,157.97,157.93,3.165]
[1727460003916,9.73,157.95,157.91,3.1654]
[1727460004127,9.73,157.95,157.9,9.73]
[1727460004514,3.1651,157.94,157.91,3.1655]
[1727460004717,9.73,157.95,157.91,3.1655]
[1727460005218,3.1651,157.94,157.91,3.1655]
[1727460005423,9.73,157.95,157.91,3.1655]
[1727460006026,3.165,157.94,157.91,3.1655]
[1727460006417,3.1648,157.95,157.92,9.73]
[1727460006721,3.1648,157.95,157.93,9.73]
[1727460008025,3.1648,157.95,157.93,12.8951]
[1727460008420,3.1648,157.95,157.86,1.2828]
[1727460008421,3.1649,157.94,157.92,3.1652]
[1727460008830,3.1649,157.94,157.91,9.73]
[1727460009121,9.73,157.96,157.91,12.8954]
[1727460009122,3.1652,157.93,157.91,12.8954]
[1727460009323,9.73,157.94,157.9,9.73]
[1727460009626,3.1652,157.93,157.9,9.73]
[1727460009825,3.1652,157.93,157.91,9.73]
[1727460010520,3.1652,157.93,157.85,3.19131599]
[1727460010521,3.1652,157.93,157.9,9.73]
[1727460010928,9.73,157.94,157.8,7.7144]
[1727460011232,2.6798,157.93,157.89,9.73]
[1727460011423,2.6798,157.93,157.92,9.73]
[1727460011626,4.55147686,157.98,157.92,9.73]
[1727460011627,9.73,157.97,157.92,9.73]
[1727460011829,12.4098,157.97,157.93,9.73]
[1727460012027,3.1648,157.95,157.93,9.73]
[1727460012420,12.4098,157.97,157.93,9.73]
[1727460012628,9.73,157.94,157.88,9.73]
[1727460013127,2.6798,157.97,157.91,9.73]
[1727460013328,9.73,157.96,157.91,9.73]
[1727460013726,3.1652,157.93,157.91,9.73]
[1727460014430,2.6798,157.97,157.9,3.1656]
[1727460014431,3.1653,157.92,157.9,3.1656]
[1727460015234,9.73,157.94,157.89,12.8959]
[1727460015630,3.1656,157.91,157.89,12.8959]
[1727460017933,9.73,157.9,157.8,4.58013348]
[1727460018129,9.73,157.9,157.84,9.73]
[1727460018130,9.73,157.89,157.84,9.73]
[1727460018531,9.73,157.87,157.84,3.1667]
[1727460018725,9.73,157.87,157.82,9.73]
[1727460019432,12.8964,157.87,157.84,3.1668]
[1727460020741,9.73,157.85,157.8,9.73]
[1727460021128,9.73,157.82,157.72,3.11788402]
[1727460021335,9.73,157.82,157.63,225.0]
[1727460021336,9.73,157.79,157.74,9.73]
[1727460021537,3.18501286,157.78,157.74,9.73]
[1727460021839,3.18501286,157.78,157.75,3.1685]
[1727460022834,3.18501286,157.78,157.75,3.1687]
[1727460024435,3.18501286,157.78,157.74,15.23]
[1727460024631,3.1678,157.8,157.76,15.23]
[1727460024837,3.1678,157.8,157.74,15.23]
[1727460025041,3.1678,157.8,157.76,3.1684]
[1727460025233,6.2747381,157.8,157.76,3.1684]
[1727460025630,3.168,157.79,157.76,3.1684]
[1727460026339,3.14720148,157.78,157.76,3.1684]
[1727460028949,3.168,157.79,157.76,3.1684]
[1727460029345,6.34670334,157.79,157.76,3.1684]
[1727460029541,3.168,157.79,157.76,3.1684]
[1727460030144,6.35811586,157.79,157.76,3.1684]
[1727460033242,3.19011586,157.79,157.78,3.1681]
[1727460033444,1.3418,157.81,157.76,15.23]
[1727460033745,1.3306,157.82,157.76,15.23]
[1727460033746,3.20077717,157.82,157.76,15.23]
[1727460033951,2.652,157.86,157.76,15.23]
[1727460034356,3.1669,157.85,157.76,15.23]
[1727460034545,2.652,157.86,157.76,15.23]
[1727460034748,15.23,157.85,157.76,15.23]
[1727460034949,3.1673,157.82,157.79,3.1679]
[1727460035249,3.14882163,157.81,157.79,3.1679]
[1727460036949,3.09873971,157.8,157.78,3.1681]
[1727460037351,3.1675,157.81,157.78,3.1681]
[1727460037952,6.36640355,157.81,157.78,3.1681]
[1727460040548,3.1678,157.8,157.78,3.1681]
[1727460041255,18.42890355,157.81,157.72,15.23]
[1727460041643,18.42890355,157.81,157.7,4.46122638]
[1727460041644,15.23,157.79,157.7,16.5398]
[1727460041848,3.1683,157.78,157.7,19.76976702]
[1727460042045,3.12853528,157.77,157.7,19.76976702]
[1727460042257,3.1683,157.78,157.7,19.76976702]
[1727460042556,3.12821831,157.77,157.7,19.76976702]
[1727460042946,2.62,157.8,157.72,15.23]
[1727460043146,5.81541684,157.8,157.74,15.23]
[1727460043349,4.56261684,157.8,157.74,15.23]
[1727460043547,4.56261684,157.8,157.78,3.168]
[1727460043750,3.19541684,157.8,157.78,3.168]
[1727460044051,3.1677,157.8,157.78,3.168]
[1727460044253,3.10611335,157.79,157.78,3.168]
[1727460046254,12.84611335,157.79,157.77,3.1683]
[1727460047356,16.01401335,157.79,157.77,3.1683]
[1727460047659,12.9079,157.79,157.77,3.1683]
[1727460048351,3.20046017,157.78,157.77,3.1683]
[1727460049853,9.74,157.79,157.78,3.1681]
[1727460050155,1.3672,157.85,157.78,3.1681]
[1727460050156,1.3672,157.85,157.78,9.74]
[1727460050356,3.1671,157.83,157.79,9.74]
[1727460050663,1.3672,157.85,157.81,9.74]
[1727460050861,3.2008054,157.85,157.84,9.74]
[1727460051060,68.44,157.87,157.84,9.74]
[1727460051455,3.21316739,157.86,157.84,9.74]
[1727460052056,3.21316739,157.86,157.85,9.74]
[1727460052358,2.6903,157.91,157.82,15.2]
[1727460052557,3.1662,157.88,157.85,3.1667]
[1727460055360,3.1662,157.88,157.77,1.3655]
[1727460055361,15.2,157.9,157.8,15.2]
[1727460056261,15.2,157.9,157.83,3.167]
[1727460056262,3.1663,157.87,157.83,3.167]
[1727460056863,3.1666,157.86,157.83,3.167]
[1727460057064,6.28547388,157.86,157.83,3.167]
[1727460059464,2.6903,157.91,157.82,15.2]
[1727460059677,2.6903,157.91,157.84,15.2]
[1727460059863,1.2863,157.92,157.86,15.2]
[1727460060374,3.22328437,157.94,157.88,15.2]
[1727460060564,68.46,157.95,157.93,3.1651]
[1727460060869,2.7013,157.96,157.9,15.2]
[1727460061070,5.86016369,157.96,157.9,15.2]
[1727460061366,4.52660748,157.96,157.9,15.2]
[1727460061870,4.4225,157.99,157.92,15.2]
[1727460062065,7.65707252,157.99,157.92,15.2]
[1727460062267,4.49307252,157.99,157.92,15.2]
[1727460062877,3.1642,157.98,157.94,3.1649]
[1727460063076,19.69307252,157.99,157.94,3.1649]
[1727460063265,19.69307252,157.99,157.9,15.2]
[1727460063467,15.2,157.98,157.88,19.06258303]
[1727460063775,15.2,157.98,157.88,15.8958]
[1727460064877,19.69307252,157.99,157.9,15.2]
[1727460066971,3.1647,157.95,157.92,3.1652]
[1727460067372,15.2,157.97,157.88,18.34191187]
[1727460067580,3.1647,157.96,157.93,3.1651]
[1727460070173,3.1644,157.97,157.94,3.1648]
[1727460070675,3.19733002,157.96,157.94,3.1648]
[1727460070878,6.36183002,157.96,157.94,3.1648]
[1727460071065,3.1645,157.96,157.94,3.1648]
[1727460071580,3.1644,157.97,157.94,3.1648]
[1727460071764,3.18339692,157.96,157.94,3.1648]
[1727460072176,3.1646,157.96,157.93,3.1651]
[1727460072380,3.1966967,157.95,157.93,3.1651]
[1727460073073,6.3613967,157.95,157.92,3.1652]
[1727460073381,15.2,157.97,157.87,15.2]
[1727460073573,1.2585,157.99,157.89,3.1658]
[1727460073574,15.2,157.95,157.89,3.1658]
[1727460073879,1.3132,157.94,157.89,3.1658]
[1727460074071,4.40793173,157.94,157.89,3.1658]
[1727460074270,3.1654,157.92,157.9,3.1657]
[1727460074676,3.1654,157.92,157.86,90.66503781]
[1727460074677,1.3132,157.94,157.89,15.2]
[1727460074874,3.15299743,157.95,157.91,15.2]
[1727460075078,1.3132,157.98,157.91,15.2]
[1727460075276,3.1646,157.96,157.93,3.1651]
[1727460075479,3.22234627,157.95,157.93,3.1651]
[1727460076084,6.38714627,157.95,157.92,3.1652]
[1727460076380,3.1648,157.95,157.89,15.2]
[1727460076675,6.28474101,157.95,157.89,15.2]
[1727460078473,6.28474101,157.95,157.93,3.1651]
[1727460079782,6.28474101,157.95,157.89,15.2]
[1727460079783,3.1649,157.94,157.89,15.2]
[1727460080280,3.11994101,157.95,157.89,15.2]
[1727460080477,3.1648,157.95,157.92,3.1652]
[1727460080686,6.31747944,157.95,157.92,3.1652]
[1727460081378,6.31747944,157.95,157.93,3.1651]
[1727460081780,11.65516123,158.0,157.94,15.2]
[1727460081973,14.75115261,158.0,157.94,15.2]
[1727460082173,3.164,157.99,157.96,3.1644]
[1727460082777,3.1641,157.98,157.96,3.1644]
[1727460083078,14.75115261,158.0,157.96,15.2]
[1727460083282,11.65516123,158.0,157.96,15.2]
[1727460084282,11.65516123,158.0,157.94,15.2]
[1727460084684,11.65516123,158.0,157.98,3.164]
[1727460084884,11.65516123,158.0,157.96,15.2]
[1727460085183,11.65516123,158.0,157.98,3.164]
[1727460086074,14.81886123,158.0,157.97,3.1642]
[1727460087289,14.81886123,158.0,157.92,15.2]
[1727460087290,11.65516123,158.0,157.92,15.2]
[1727460087491,11.65516123,158.0,157.88,2.0647]
[1727460087695,16.4952,157.99,157.89,15.2]
[1727460087993,4.4592,157.99,157.91,15.2]
[1727460088192,3.164,157.99,157.93,15.2]
[1727460088393,14.81896123,158.0,157.93,15.2]
[1727460088988,3.164,157.99,157.96,3.1644]
[1727460090492,3.1642,157.98,157.95,3.1646]
[1727460090796,15.2,157.98,157.89,15.2]
[1727460090992,3.1644,157.97,157.94,3.1649]
[1727460091393,3.1644,157.97,157.91,15.2]
[1727460091786,3.1644,157.97,157.94,3.1648]
[1727460092000,11.65516123,158.0,157.91,15.2]
[1727460092192,11.65516123,158.0,157.95,3.1646]
[1727460092391,3.1642,157.98,157.95,3.1646]
[1727460093103,3.1642,157.98,157.96,3.1645]
[1727460093996,3.164,157.99,157.96,3.1645]
[1727460094193,11.65516123,158.0,157.97,3.1641]
[1727460095193,3.1641,157.99,157.96,3.1644]
[1727460095707,3.1643,157.98,157.95,3.1646]
[1727460096004,26.85516123,158.0,157.95,3.1646]
[1727460096397,3.1643,157.98,157.95,3.1646]
[1727460096898,26.85516123,158.0,157.95,3.1646]
[1727460097100,26.85516123,158.0,157.96,3.1645]
[1727460097998,26.85516123,158.0,157.94,3.1648]
[1727460099301,26.85516123,158.0,157.95,3.1647]
[1727460099698,15.2,157.98,157.89,15.2]
[1727460100398,3.1646,157.96,157.93,3.1649]
[1727460100800,3.1646,157.96,157.89,15.2]
[1727460101700,3.1646,157.96,157.94,3.1649]
[1727460102705,26.85516123,158.0,157.95,3.1647]
[1727460103403,3.1642,157.98,157.95,3.1647]
[1727460107011,3.1644,157.97,157.95,3.1647]
[1727460107306,15.2,157.97,157.88,16.57]
[1727460107507,3.165,157.94,157.88,16.57]
[1727460107700,3.165,157.94,157.91,3.1654]
[1727460108302,9.73,157.92,157.9,3.1656]
[1727460108504,12.9077264,157.92,157.87,9.73]
[1727460108805,9.73,157.88,157.86,75.46943628]
[1727460109196,3.15264522,157.87,157.86,75.46943628]
[1727460109399,6.31894522,157.87,157.86,75.46943628]
[1727460109611,3.1663,157.87,157.84,3.1667]
[1727460109914,3.167,157.84,157.81,3.1674]
[1727460110110,3.167,157.84,157.79,9.73]
[1727460110313,3.167,157.84,157.75,17.2298]
[1727460110508,3.09277886,157.84,157.79,3.1678]